bitfinex/quotes_ETHUSD_20250611
["timestamp","ask_amount","ask_price","bid_price","bid_amount"]
[1749600396130,0.04,2815.9,2815.8,30.0]
[1749600397241,0.04,2815.9,2815.8,33.55138859]
[1749600397412,0.04,2815.9,2815.8,34.02437969]
[1749600397757,0.3549,2817.6,2817.3,3.54949774]
[1749600397900,1.1803,2818.4,2817.9,3.54874197]
[1749600398245,1.1803,2818.7,2818.1,40.0]
[1749600398443,1.1803,2818.7,2818.3,40.0]
[1749600398657,0.04,2818.9,2816.9,30.0]
[1749600398658,1.1803,2818.4,2816.9,30.0]
[1749600398797,0.3549,2818.3,2818.2,30.36333725]
[1749600398998,1.1803,2818.4,2818.2,30.0]
[1749600398999,0.3549,2818.4,2818.2,30.0]
[1749600399252,0.3549,2818.4,2818.3,3.877]
[1749600399405,0.04,2818.9,2818.4,30.0]
[1749600399810,0.50326581,2818.5,2818.4,30.02218742]
[1749600400017,0.50326581,2818.5,2818.4,33.62969982]
[1749600400230,0.50326581,2818.5,2818.4,30.08158742]
[1749600401112,0.50326581,2818.5,2818.4,33.62969982]
[1749600401355,0.04,2818.9,2818.7,30.0]
[1749600401558,0.3949,2818.9,2818.5,30.0]
[1749600402254,0.3949,2818.9,2818.4,1.089]
[1749600402255,0.04,2818.9,2818.7,40.0]
[1749600402436,0.005,2819.4,2818.9,10.0]
[1749600402751,0.005,2819.4,2819.1,30.0]
[1749600402904,0.005,2819.4,2819.3,40.0]
[1749600403102,0.04,2819.9,2819.3,31.57383039]
[1749600403351,1.2392,2820.7,2819.3,31.57383039]
[1749600403352,1.4907243,2820.0,2819.5,30.0]
[1749600403646,1.4907243,2820.0,2819.7,43.54644639]
[1749600403828,1.4907243,2820.0,2819.9,30.0]
[1749600404029,1.4907243,2820.0,2819.9,33.893]
[1749600404550,0.005,2821.2,2820.9,30.0]
[1749600404837,0.005,2821.2,2820.8,0.0594]
[1749600404838,0.04,2821.9,2821.1,30.0]
[1749600405039,0.04,2821.9,2821.3,43.54446239]
[1749600405238,0.04,2821.9,2821.6,0.0594]
[1749600405406,1.0,2822.6,2822.0,39.79452656]
[1749600405605,1.0,2822.6,2820.2,0.0594]
[1749600405606,1.2392,2822.5,2820.5,4.001]
[1749600405840,1.2392,2822.5,2821.3,30.0]
[1749600406027,0.22392,2822.4,2821.4,1.135]
[1749600406235,1.2392,2822.3,2821.4,12.663]
[1749600406406,1.2392,2822.3,2821.2,3.627]
[1749600406602,0.55,2822.2,2821.2,3.627]
[1749600406803,0.55,2822.0,2821.2,3.627]
[1749600407040,0.22392,2822.4,2820.6,1.135]
[1749600407242,1.2181,2822.2,2820.5,4.009]
[1749600407443,1.2181,2822.0,2820.6,30.0]
[1749600407761,0.55,2821.9,2820.7,17.121]
[1749600407922,0.55,2821.7,2820.7,17.121]
[1749600408309,0.55,2821.7,2820.7,30.0]
[1749600408720,0.22392,2822.4,2820.7,30.0]
[1749600408721,0.55,2822.1,2820.7,17.279]
[1749600408940,0.55,2821.9,2820.2,30.0]
[1749600409119,0.55,2821.7,2820.2,20.41]
[1749600409524,0.55,2821.7,2820.1,0.04]
[1749600409525,1.2217,2821.8,2820.4,40.0]
[1749600409834,1.2217,2821.8,2820.6,40.0]
[1749600410037,1.2217,2821.8,2820.8,40.0]
[1749600410239,1.2217,2821.8,2821.0,40.0]
[1749600410450,0.55,2821.7,2821.0,30.0]
[1749600411136,1.2217,2821.8,2821.0,30.0]
[1749600411349,1.2217,2821.8,2820.9,4.006]
[1749600411350,1.2217,2821.8,2821.2,23.142]
[1749600411648,1.2217,2821.8,2821.3,30.0]
[1749600412049,1.2217,2821.8,2821.4,4.007]
[1749600412251,1.0,2822.6,2821.7,40.0]
[1749600412406,1.0,2822.6,2821.8,4.01]
[1749600412612,1.0,2822.6,2821.9,30.0]
[1749600412948,1.0,2822.6,2822.1,30.0]
[1749600413245,4.059,2824.9,2824.0,12.50163419]
[1749600413246,0.04,2824.9,2824.0,12.50163419]
[1749600413544,0.29690079,2824.8,2823.1,4.023]
[1749600413710,3.86650079,2824.8,2823.0,4.022]
[1749600413911,3.86650079,2824.8,2822.9,1.18]
[1749600413912,10.0,2824.7,2822.9,1.18]
[1749600414243,0.29690079,2824.6,2823.0,21.711]
[1749600414443,0.29690079,2824.6,2822.9,1.18]
[1749600414444,0.68355087,2824.6,2823.2,40.0]
[1749600414610,0.68355087,2824.6,2823.2,29.8574]
[1749600414810,0.04,2824.9,2823.2,29.8574]
[1749600415017,0.04,2824.9,2823.3,5.202]
[1749600415211,0.04,2824.9,2823.4,30.0]
[1749600415438,0.04,2824.9,2823.5,5.205]
[1749600415758,0.04,2824.9,2823.3,1.18]
[1749600416110,0.04,2824.9,2822.3,1.2152]
[1749600416111,1.2633,2824.7,2822.3,1.2152]
[1749600416316,1.2633,2824.7,2822.5,30.0]
[1749600416538,0.55,2824.6,2822.6,5.204]
[1749600416737,0.55,2824.3,2822.7,5.201]
[1749600416936,0.55,2824.1,2822.8,40.0]
[1749600417162,0.04,2824.9,2823.0,30.0]
[1749600417349,1.2322,2824.8,2823.2,30.0]
[1749600417642,1.2322,2824.8,2823.3,5.244]
[1749600417949,0.55,2824.5,2823.4,30.0]
[1749600418163,1.2322,2824.4,2823.4,4.064]
[1749600418458,1.2322,2824.4,2823.5,30.0]
[1749600419157,1.2322,2824.4,2823.5,31.2293]
[1749600419363,1.2322,2824.4,2823.5,5.257]
[1749600419689,1.2322,2824.4,2823.6,15.847]
[1749600420149,0.55,2824.1,2823.1,1.18]
[1749600420352,1.2322,2824.0,2823.2,3.07]
[1749600420523,0.55,2823.7,2822.4,1.18]
[1749600420717,1.2322,2823.6,2822.5,30.0]
[1749600421108,0.17822,2823.9,2822.3,4.077]
[1749600421109,0.55,2823.4,2822.3,4.077]
[1749600421313,0.55,2823.0,2822.1,1.22]
[1749600421630,0.55,2823.0,2822.2,30.0]
[1749600421833,1.2322,2823.1,2822.2,30.0]
[1749600422040,1.2322,2823.1,2822.2,34.08]
[1749600422221,1.2322,2823.1,2822.3,30.0]
[1749600423362,1.2322,2823.1,2822.2,30.0]
[1749600425022,1.2322,2823.1,2822.4,40.0]
[1749600425222,1.2322,2823.1,2822.4,30.0]
[1749600425655,0.55,2823.0,2822.2,30.0]
[1749600425953,0.55,2822.8,2822.1,0.04]
[1749600427949,0.55,2822.6,2822.1,0.04]
[1749600429553,1.2377,2822.7,2822.1,0.04]
[1749600429753,1.2377,2822.7,2822.2,30.50739896]
[1749600429952,1.2377,2822.7,2822.2,30.0]
[1749600430475,1.2801,2823.3,2822.2,30.0]
[1749600430777,1.2801,2823.3,2822.4,30.0]
[1749600430992,1.2801,2823.3,2822.6,30.0]
[1749600431544,0.55,2823.2,2822.2,30.0]
[1749600431853,0.55,2823.2,2822.4,40.0]
[1749600432058,0.18301,2823.1,2822.4,30.0]
[1749600432786,0.18301,2823.1,2822.4,4.047]
[1749600433084,0.18301,2823.1,2822.3,4.046]
[1749600433255,0.18301,2823.1,2822.2,34.046]
[1749600433439,0.18301,2823.1,2822.3,30.0]
[1749600433790,0.18301,2823.1,2822.4,0.00380291]
[1749600435440,0.55,2823.0,2822.4,0.00380291]
[1749600435846,1.2542,2822.9,2822.4,0.00380291]
[1749600436087,0.18042,2822.8,2822.2,16.794]
[1749600436287,0.18042,2822.8,2822.5,0.00380278]
[1749600436894,0.55,2822.7,2822.5,0.00380278]
[1749600437241,1.8398,2822.6,2822.5,0.00380278]
[1749600437447,2.096822,2822.6,2822.5,0.00380278]
[1749600437692,1.901722,2822.6,2822.5,0.00380278]
[1749600438178,1.6447,2822.6,2822.5,0.00380278]
[1749600438769,2.1947,2822.6,2822.5,0.00380278]
[1749600439482,3.03715823,2822.6,2822.5,0.00380278]
[1749600440047,4.08740422,2822.6,2822.5,0.00380278]
[1749600440460,3.03715823,2822.6,2822.5,0.00380278]
[1749600440679,3.03715823,2822.6,2821.1,0.04]
[1749600440680,0.3549,2822.0,2821.1,0.04]
[1749600440979,0.3549,2821.8,2821.1,0.54739896]
[1749600441145,0.3549,2821.8,2821.1,0.04]
[1749600441774,1.2981,2822.1,2821.1,0.04]
[1749600441775,0.3549,2821.4,2821.1,0.04]
[1749600442281,0.3549,2821.2,2821.1,0.04]
[1749600442485,0.55,2821.4,2821.1,0.04]
[1749600442795,3.20295786,2821.2,2821.1,0.04]
[1749600442959,2.99183372,2821.2,2821.1,0.04]
[1749600443395,4.04542742,2821.2,2821.1,0.04]
[1749600443701,2.99183372,2821.2,2821.1,0.04]
[1749600443898,2.63693372,2821.2,2821.1,0.04]
[1749600444086,3.14663418,2821.2,2821.1,0.04]
[1749600444967,4.55512788,2821.2,2821.1,0.04]
[1749600445207,0.55,2820.7,2819.1,11.3467]
[1749600445411,0.55,2820.5,2819.6,1.182]
[1749600445611,0.55,2820.5,2819.2,10.0]
[1749600445914,1.2235,2820.4,2819.1,3.03609896]
[1749600446114,0.55,2820.3,2819.5,0.50739896]
[1749600446318,0.3549,2820.6,2819.2,10.0]
[1749600446522,0.3549,2820.6,2820.3,30.0]
[1749600446822,1.5784,2820.9,2820.3,30.0]
[1749600447483,1.5784,2820.9,2820.1,1.222]
[1749600447683,1.5784,2820.9,2820.2,30.0]
[1749600448193,1.2235,2820.9,2820.2,30.0]
[1749600448565,0.3549,2821.5,2820.7,30.0]
[1749600448767,0.3549,2821.5,2820.6,30.0]
[1749600448968,0.3549,2821.5,2820.3,4.05307379]
[1749600448969,0.3549,2821.5,2820.4,30.0]
[1749600449406,1.73609015,2822.5,2820.1,4.76788342]
[1749600449407,0.55,2821.0,2820.2,30.0]
[1749600449611,0.55,2821.0,2820.2,3.293]
[1749600449779,0.76384,2821.0,2820.2,2.25]
[1749600449983,1.2335,2821.2,2820.2,2.25]
[1749600450204,1.2335,2821.2,2820.5,3.54544827]
[1749600450383,1.2335,2821.2,2820.6,3.54531259]
[1749600450719,1.2335,2821.5,2820.7,30.0]
[1749600451027,1.2335,2821.5,2820.8,30.0]
[1749600451221,1.2335,2821.5,2820.9,30.0]
[1749600451722,1.2335,2821.5,2821.0,30.0]
[1749600452027,1.2335,2821.5,2820.9,1.182]
[1749600452331,1.2335,2821.5,2821.0,30.0]
[1749600452684,0.55,2821.4,2820.0,1.182]
[1749600452894,0.55,2821.0,2820.0,1.182]
[1749600453085,0.55,2820.8,2820.0,1.182]
[1749600454502,0.55,2820.6,2819.7,1.182]
[1749600455024,0.3549,2820.8,2819.2,31.183]
[1749600455325,0.9049,2819.8,2819.2,1.183]
[1749600455635,0.55,2819.6,2819.1,0.04]
[1749600456037,0.3549,2819.5,2819.1,0.04]
[1749600456251,0.55,2819.2,2819.1,0.04]
[1749600456392,2.36647,2819.2,2819.1,0.04]
[1749600457429,2.1336,2819.2,2819.1,0.04]
[1749600457627,1.7787,2819.2,2819.1,0.04]
[1749600461437,1.2287,2819.2,2819.1,0.04]
[1749600461593,1.7787,2819.2,2819.1,0.04]
[1749600461793,1.2287,2819.2,2819.1,0.04]
[1749600462530,1.7787,2819.2,2819.1,0.04]
[1749600462730,1.95657,2819.2,2819.1,0.04]
[1749600463232,1.90657,2819.2,2819.1,0.04]
[1749600464304,1.7287,2819.2,2819.1,0.04]
[1749600464506,0.3549,2820.1,2819.1,0.04]
[1749600464706,0.9049,2819.8,2819.1,0.04]
[1749600464939,0.3549,2820.9,2819.1,0.04]
[1749600465139,4.001,2820.6,2819.1,0.04]
[1749600465349,0.4001,2820.5,2819.1,0.04]
[1749600466018,0.755,2820.5,2819.1,0.04]
[1749600466332,1.3123,2820.4,2819.1,0.04]
[1749600466499,0.55,2820.3,2819.1,0.04]
[1749600466701,0.55,2820.1,2819.1,0.04]
[1749600466899,0.55,2819.9,2819.1,0.04]
[1749600467099,0.55,2820.1,2819.1,0.04]
[1749600467336,4.71,2820.2,2819.2,1.2699]
[1749600467494,4.71,2820.2,2819.2,0.9153]
[1749600467495,0.3549,2820.1,2819.2,0.9153]
[1749600467701,0.3549,2820.1,2819.3,30.0]
[1749600468463,0.3549,2820.1,2819.3,18.656]
[1749600468734,0.3549,2820.1,2819.1,0.04]
[1749600468936,0.9049,2819.9,2819.1,0.04]
[1749600470010,0.9049,2819.7,2819.1,0.04]
[1749600470401,0.9049,2819.5,2819.1,0.04]
[1749600470599,0.9049,2819.2,2819.1,0.04]
[1749600470796,2.1557,2819.2,2819.1,0.04]
[1749600473045,2.1557,2819.2,2817.8,1.162]
[1749600474602,0.9049,2818.8,2817.5,6.444]
[1749600474804,0.9049,2818.8,2817.5,1.163]
[1749600475044,1.12354,2818.8,2817.5,1.163]
[1749600476044,0.9049,2818.6,2817.1,0.04]
[1749600476402,0.9049,2818.4,2817.1,0.04]
[1749600476603,0.9049,2818.2,2817.1,0.04]
[1749600477403,0.55,2818.2,2817.1,0.04]
[1749600478317,0.55,2818.2,2817.1,0.54739896]
[1749600478639,0.55,2818.2,2817.3,1.3092]
[1749600478938,0.55,2818.2,2817.4,0.1816599]
[1749600479125,1.2646,2818.3,2817.4,0.68905886]
[1749600479326,0.55,2818.2,2817.4,0.1816599]
[1749600480277,0.55,2818.2,2817.5,30.0]
[1749600480442,0.55,2818.2,2817.6,30.0]
[1749600481566,0.55,2818.2,2817.4,11.413]
[1749600481762,0.55,2818.2,2817.1,0.04]
[1749600481973,0.3549,2819.2,2817.1,0.04]
[1749600481974,0.9049,2818.9,2817.1,0.04]
[1749600482178,0.55,2818.7,2817.1,0.04]
[1749600482364,0.55,2818.5,2817.1,0.04]
[1749600482672,0.55,2817.9,2817.1,0.04]
[1749600482905,0.55,2817.5,2817.1,0.04]
[1749600483193,1.2666,2817.4,2817.1,0.04]
[1749600483347,0.19003,2817.8,2817.1,0.04]
[1749600483348,1.8166,2817.2,2817.1,0.04]
[1749600484142,0.55,2817.1,2815.8,1.163]
[1749600484382,0.55,2817.1,2815.9,30.0]
[1749600484674,0.73166,2817.1,2815.9,23.664]
[1749600485287,0.55,2817.1,2816.1,40.0]
[1749600485458,0.55,2817.1,2816.1,30.0]
[1749600485967,0.55,2817.1,2816.1,23.716]
[1749600486186,0.55,2817.1,2816.1,5.747]
[1749600486371,0.55,2817.1,2816.0,1.328]
[1749600486372,0.55,2817.1,2816.3,10.0]
[1749600486689,1.2666,2817.2,2816.3,30.0]
[1749600486849,1.2666,2817.2,2816.1,30.0]
[1749600487049,1.2666,2817.2,2816.3,40.0]
[1749600487351,0.55,2817.1,2816.3,40.0]
[1749600487553,0.3549,2817.0,2816.2,30.0]
[1749600487779,0.3549,2817.0,2816.1,30.0]
[1749600487996,0.3549,2817.0,2816.5,3.55049264]
[1749600488208,0.3549,2817.0,2816.6,33.55032632]
[1749600488502,1.2444,2817.8,2816.8,30.0]
[1749600488503,0.3549,2816.9,2816.8,30.0]
[1749600488869,0.3549,2816.9,2816.8,33.5501278]
[1749600489064,0.3549,2816.9,2816.8,31.2798]
[1749600489567,0.3549,2816.9,2816.4,1.2798]
[1749600490189,0.3549,2816.5,2816.2,9.281]
[1749600490397,0.3549,2816.5,2816.0,6.651]
[1749600490711,0.3549,2816.5,2816.2,10.0]
[1749600490917,0.3549,2816.5,2815.9,5.07149155]
[1749600491125,0.3549,2816.5,2816.0,40.0]
[1749600491416,0.3549,2816.4,2816.0,30.0]
[1749600491966,1.5951,2816.4,2815.7,2.491]
[1749600492178,1.5951,2816.4,2815.8,30.0]
[1749600492681,0.3549,2816.2,2815.8,30.0]
[1749600493405,0.3549,2816.2,2815.8,30.35298162]
[1749600493605,0.3549,2816.1,2815.9,30.0]
[1749600494122,0.3549,2816.1,2816.0,40.0]
[1749600494296,0.3549,2816.6,2816.0,3.55113636]
[1749600494609,0.04,2817.9,2815.9,0.51255354]
[1749600494610,0.3549,2816.5,2815.9,30.0]
[1749600494911,0.3549,2816.5,2816.4,3.55063201]
[1749600495109,0.3549,2816.5,2816.4,33.55063201]
[1749600495467,0.3549,2816.5,2816.4,30.0]
[1749600495699,0.3549,2816.5,2816.4,33.55063201]
[1749600496599,0.3549,2816.5,2816.4,34.06318555]
[1749600496967,0.3549,2817.6,2816.8,3.5500791]
[1749600497207,0.3549,2817.6,2816.9,30.0]
[1749600497502,0.3549,2817.6,2816.9,31.328]
[1749600497704,0.3549,2817.6,2817.0,30.0]
[1749600498303,0.3549,2817.6,2817.0,8.099]
[1749600498612,0.3549,2817.4,2817.0,8.099]
[1749600499605,0.3549,2817.3,2817.1,3.54966976]
[1749600499819,0.3549,2817.3,2817.2,40.0]
[1749600500111,0.3549,2817.3,2817.1,30.0]
[1749600500282,0.3549,2817.3,2817.1,31.163]
[1749600500479,0.3549,2817.3,2817.2,13.937]
[1749600500720,0.3549,2817.3,2817.1,30.0]
[1749600501607,0.9049,2817.8,2817.1,30.0]
[1749600502171,0.9049,2817.8,2816.9,1.328]
[1749600502368,0.3549,2817.4,2816.7,31.163]
[1749600502606,0.3549,2817.4,2817.0,40.0]
[1749600502808,0.3549,2817.4,2816.8,33.55010002]
[1749600502994,0.3549,2817.4,2817.1,3.54974894]
[1749600503304,0.3549,2817.4,2817.3,31.3704]
[1749600503874,0.3549,2817.4,2817.3,34.91989774]
[1749600504373,0.04,2817.9,2817.8,3.54886791]
[1749600504576,1.316,2819.0,2818.0,40.0]
[1749600504773,1.3408,2819.3,2818.2,40.0]
[1749600505006,1.3408,2819.3,2818.0,35.084]
[1749600505222,1.3408,2818.8,2818.0,30.0]
[1749600505399,1.3691,2819.1,2818.1,3.54849011]
[1749600505606,0.3549,2819.0,2818.2,30.0]
[1749600505788,0.3549,2819.0,2818.2,33.54835655]
[1749600506112,0.34776846,2820.4,2818.2,33.54835655]
[1749600506113,0.3949,2818.9,2818.4,1.3036]
[1749600506284,0.3949,2818.9,2818.7,40.0]
[1749600506491,0.3949,2818.9,2818.8,31.136]
[1749600506685,0.3949,2818.9,2818.8,34.68360891]
[1749600507008,0.3549,2819.2,2819.1,30.0]
[1749600507194,0.3549,2819.2,2819.1,33.948]
[1749600507395,0.3549,2819.2,2819.1,37.49523138]
[1749600507594,0.04,2820.9,2819.4,40.0]
[1749600507595,1.3407,2820.5,2819.4,40.0]
[1749600507796,1.3407,2820.5,2819.6,40.0]
[1749600507797,0.29690079,2819.8,2819.6,40.0]
[1749600507983,0.29690079,2819.8,2819.5,30.0]
[1749600508185,0.29690079,2819.8,2819.5,7.794]
[1749600508519,0.29690079,2819.8,2819.7,30.0]
[1749600508713,1.3407,2820.5,2819.7,1.136]
[1749600508912,0.04,2820.9,2819.8,37.4923508]
[1749600509114,0.04,2820.9,2820.4,30.0]
[1749600509273,0.04,2820.9,2820.6,40.0]
[1749600509478,0.04,2820.9,2820.7,30.0]
[1749600509898,0.04,2820.9,2820.7,23.782]
[1749600510124,0.04,2820.9,2820.2,3.54581276]
[1749600510323,0.04,2820.9,2820.3,40.0]
[1749600510534,0.04,2820.9,2820.3,30.0]
[1749600510929,0.04,2820.9,2820.5,40.0]
[1749600511207,0.04,2820.9,2820.5,30.0]
[1749600511406,0.04,2820.9,2820.5,20.95713492]
[1749600511632,0.04,2820.9,2820.5,30.0]
[1749600512742,0.04,2820.9,2820.7,30.0]
[1749600516939,0.04,2820.9,2820.8,38.82369359]
[1749600517744,0.04,2820.9,2820.8,39.65303661]
[1749600518052,0.04,2820.9,2820.8,39.25780731]
[1749600521264,0.04,2820.9,2820.8,39.94769359]
[1749600521831,0.04,2820.9,2820.8,39.94669359]
[1749600522421,0.04,2820.9,2820.8,36.4016]
[1749600522752,0.04,2820.9,2820.8,30.0]
[1749600523762,0.04,2820.9,2820.8,15.25]
[1749600524044,0.04,2820.9,2820.8,14.252]
[1749600524413,0.04,2820.9,2820.1,30.0]
[1749600524414,1.7127,2820.9,2820.1,30.0]
[1749600524627,0.3949,2820.9,2820.4,30.0]
[1749600524828,0.3949,2820.9,2820.4,33.54550757]
[1749600525048,0.3949,2820.9,2820.4,30.0]
[1749600527274,0.3549,2820.7,2820.6,0.29595923]
[1749600529243,0.3549,2820.7,2820.6,30.29595923]
[1749600529656,0.04,2820.9,2820.6,30.29595923]
[1749600529860,0.04,2820.9,2820.6,34.20395923]
[1749600530066,0.04,2820.9,2820.7,30.0]
[1749600530266,0.04,2821.9,2820.8,3.91]
[1749600530475,0.04,2821.9,2821.3,30.0]
[1749600530760,0.04,2821.9,2821.4,1.135]
[1749600531069,0.04,2821.9,2821.5,10.0]
[1749600531467,0.04,2821.9,2821.5,30.0]
[1749600532472,0.04,2821.9,2821.5,33.908]
[1749600532701,0.04,2821.9,2821.6,30.0]
[1749600533088,0.04,2821.9,2821.8,30.0]
[1749600533402,0.04,2823.9,2821.8,30.0]
[1749600533403,0.684513,2822.5,2822.4,34.8300839]
[1749600533571,0.00267582,2823.6,2822.6,40.0]
[1749600533898,0.00267582,2823.6,2822.8,33.54258183]
[1749600534459,0.00267582,2823.6,2822.8,34.82958183]
[1749600534663,0.00267582,2823.6,2822.8,36.314]
[1749600534881,1.27087582,2823.6,2822.8,31.287]
[1749600535071,1.27087582,2823.6,2822.8,35.026]
[1749600535271,0.00267582,2823.6,2822.8,36.313]
[1749600535470,0.00267582,2823.6,2823.1,3.54216632]
[1749600535697,0.00267582,2823.6,2823.3,30.0]
[1749600536015,0.00267582,2823.6,2823.5,30.0]
[1749600536795,0.00267582,2823.6,2823.5,35.034]
[1749600537000,0.00267582,2823.6,2823.5,30.0]
[1749600537301,0.00267582,2823.6,2823.5,31.11]
[1749600537673,0.00267582,2823.6,2823.4,1.11]
[1749600538101,0.00267582,2823.6,2823.5,30.0]
[1749600538399,0.00267582,2823.6,2822.9,30.0]
[1749600538605,0.00267582,2823.6,2823.1,10.0]
[1749600538814,0.00267582,2823.6,2822.8,1.287]
[1749600538815,0.00267582,2823.6,2823.0,30.0]
[1749600539120,0.00267582,2823.6,2823.0,33.925]
[1749600539274,0.00267582,2823.6,2823.3,40.0]
[1749600539470,0.00267582,2823.6,2823.3,30.0]
[1749600539710,0.00267582,2823.6,2823.4,5.038]
[1749600539911,0.00267582,2823.6,2823.5,30.0]
[1749600540713,0.00267582,2823.6,2823.5,1.11]
[1749600540915,0.00267582,2823.6,2823.1,30.0]
[1749600541113,0.00267582,2823.6,2822.6,1.2313]
[1749600541114,1.2219,2823.5,2822.6,1.11]
[1749600541315,1.2219,2823.5,2822.8,10.0]
[1749600541482,1.2219,2823.5,2822.9,10.0]
[1749600541684,1.2219,2823.5,2823.0,2.813]
[1749600542274,0.00267582,2823.6,2823.2,40.0]
[1749600542522,0.00267582,2823.6,2823.3,3.929]
[1749600542684,0.00267582,2823.6,2823.4,30.0]
[1749600542878,0.00267582,2823.6,2823.5,31.11]
[1749600544020,0.00267582,2823.6,2823.5,38.57770355]
[1749600544174,0.00267582,2823.6,2823.5,39.86470355]
[1749600544506,1.3027,2824.3,2823.6,30.0]
[1749600544507,1.24537582,2824.3,2823.6,30.0]
[1749600544674,1.24537582,2824.3,2823.8,40.0]
[1749600544867,1.24537582,2824.3,2823.8,30.0]
[1749600545072,1.0,2824.4,2823.8,30.0]
[1749600545328,1.0,2824.4,2824.0,40.0]
[1749600545471,1.0,2824.4,2824.2,40.0]
[1749600545673,1.0,2824.4,2824.3,30.0]
[1749600545910,1.0,2824.4,2823.8,30.0]
[1749600546108,1.0,2824.4,2823.9,5.044]
[1749600546306,1.0,2824.4,2823.8,30.0]
[1749600546307,1.0,2824.4,2824.1,30.0]
[1749600546481,1.0,2824.4,2824.3,40.0]
[1749600546681,1.0,2824.4,2824.3,30.0]
[1749600546883,1.0,2824.4,2824.3,31.11]
[1749600547604,1.0,2824.4,2824.3,30.7554]
[1749600547813,1.0,2824.4,2824.3,31.11]
[1749600549849,1.0,2824.4,2824.3,5.038]
[1749600550049,1.0,2824.4,2824.3,35.038]
[1749600550690,1.0,2824.4,2823.8,31.11]
[1749600550892,1.0,2824.4,2823.9,30.0]
[1749600551090,1.33,2824.3,2823.8,1.11]
[1749600551824,1.563,2824.3,2823.6,9.167]
[1749600552007,1.563,2824.3,2823.7,1.11]
[1749600552209,1.2948,2824.1,2823.6,9.167]
[1749600553023,1.2948,2824.1,2823.2,1.11]
[1749600553024,0.55,2823.9,2823.2,1.11]
[1749600553229,0.55,2823.7,2823.1,1.11]
[1749600553444,1.2542,2823.8,2823.1,1.11]
[1749600553445,1.2542,2823.8,2823.2,30.0]
[1749600553734,1.2542,2823.8,2823.2,33.54205561]
[1749600553934,1.2542,2823.8,2823.2,30.0]
[1749600554705,1.2542,2823.8,2823.3,33.927]
[1749600554905,0.5879,2824.3,2823.3,33.927]
[1749600554906,0.3549,2824.3,2823.5,30.0]
[1749600555176,0.3549,2824.3,2823.9,3.54117818]
[1749600555323,1.0,2824.4,2823.9,3.54117818]
[1749600555324,1.0,2824.4,2824.1,30.0]
[1749600555526,1.0,2824.4,2824.1,23.312]
[1749600557240,1.0,2824.4,2824.2,30.0]
[1749600557739,0.3549,2824.3,2824.2,30.0]
[1749600557942,0.3549,2824.3,2823.7,3.5414347]
[1749600558246,0.3549,2824.3,2824.0,30.0]
[1749600558628,0.3549,2824.3,2824.1,3.54087846]
[1749600558800,0.3549,2824.3,2824.2,3.927]
[1749600559014,1.0,2824.4,2824.3,13.54070035]
[1749600559214,1.3549,2824.4,2824.3,5.036]
[1749600559427,1.3549,2824.4,2824.3,35.036]
[1749600560347,1.3549,2824.4,2823.8,30.0]
[1749600560568,1.3549,2824.4,2824.2,30.0]
[1749600560732,1.3549,2824.4,2824.3,39.89740035]
[1749600561144,0.57659375,2824.4,2824.3,39.89740035]
[1749600562268,0.57659375,2824.4,2824.3,36.3567]
[1749600563726,0.57659375,2824.4,2824.3,39.89740035]
[1749600564044,0.3949,2824.9,2824.3,36.79081372]
[1749600564269,0.04,2824.9,2824.7,30.0]
[1749600564429,0.04,2824.9,2824.8,3.922]
[1749600564628,0.04,2824.9,2824.6,30.0]
[1749600564985,0.04,2824.9,2824.8,2.452]
[1749600566421,0.04,2824.9,2824.8,2.84529465]
[1749600566633,0.04,2824.9,2824.5,30.0]
[1749600566859,0.04,2824.9,2824.5,9.896]
[1749600567045,1.2727,2824.8,2824.2,1.124]
[1749600568646,2.1776,2824.2,2823.6,0.29564478]
[1749600568857,0.9049,2824.0,2823.6,0.29564478]
[1749600569052,1.6276,2823.7,2823.6,0.29564478]
[1749600569429,2.1776,2823.7,2823.6,0.29564478]
[1749600571772,0.9049,2823.7,2823.6,0.29564478]
[1749600571944,0.3549,2823.0,2822.7,1.124]
[1749600572470,1.3163,2823.2,2822.7,1.124]
[1749600572685,1.3163,2823.7,2822.8,30.85170452]
[1749600572965,1.3163,2823.7,2822.9,30.0]
[1749600573165,1.3163,2823.7,2823.0,0.43411372]
[1749600573370,0.55,2823.6,2823.1,40.0]
[1749600573571,0.55,2823.6,2822.7,1.124]
[1749600573572,0.55,2823.6,2822.6,10.0]
[1749600573741,0.55,2823.4,2822.6,5.049]
[1749600573971,1.3448,2823.1,2822.3,30.0]
[1749600574294,0.55,2823.0,2822.3,17.258]
[1749600574703,0.73948,2823.0,2822.2,9.162]
[1749600574993,1.3197,2822.9,2822.1,0.04]